Cogmind - Beta 10.2 @@@ ROGUE MODE // 2020.11.14 @ 02:35:40 // Halloween2020/ForbiddenLore Player: rusmal Result: Destroyed by B-86 Titan with Hardcell Cannon Performance ------------- Evolutions (6) 3000 Regions Visited (16) 3200 Robots Destroyed (185) 925 Value Destroyed (5955) 5955 Prototype IDs (46) 920 Alien Tech Used (2) 400 Bonus (1299) 1299 TOTAL SCORE: 15699 Bonus ------- High Alert Combat Kills 361 Follower Combat Kills 338 Aligned with FarCom 300 Met Zhirov 300 Cogmind --------- Core Integrity 0/1150 Matter 276/300 Energy 100/100 System Corruption 10% Temperature Cool (9) Movement Core (550) Ox10 Location -4/Extension Parts ------- > --- POWER (2) -------- (None) > --- PROPULSION (5) --- (None) > --- UTILITY (10) ----- High-capacity Storage Unit Advanced Signal Interpreter Improved Terrain Scan Processor Advanced Targeting Computer > --- WEAPON (2) ------- (None) > --- INVENTORY (12) --- Precision Matter Filter Advanced ECM Suite Improved Force Field Beamcaster Matter Neutralizer Railgun Greatsword Peak State ------------ > --- POWER ------------ Angular Momentum Engine Heavy Antimatter Reactor > --- PROPULSION ------- Armored Leg Myomer Leg Advanced Myomer Leg Advanced Myomer Leg Advanced Myomer Leg > --- UTILITY ---------- Large Storage Unit High-capacity Storage Unit Advanced Signal Interpreter Advanced Terrain Scanner Improved Terrain Scan Processor Advanced Targeting Computer Improved Transmission Jammer Improved Medium Armor Plating Improved Powered Armor Improved Force Field > --- WEAPON ----------- Latent Energy Streamer Railgun > --- INVENTORY -------- Neutrino Core Advanced Medium Treads Improved Titanium Leg Improved Titanium Leg Advanced Power Amplifier Precision Matter Filter Advanced ECM Suite Improved Force Field Transdimensional Reconstructor Beamcaster HERF Cannon Matter Neutralizer Railgun Railgun Advanced EMP Blaster Heavy Missile Launcher Greatsword [Rating: 113] Favorites ----------- Power Light Nuclear Core Engine Angular Momentum Engine Power Core Light Nuclear Core Reactor Heavy Antimatter Reactor Propulsion Armored Treads Treads Armored Treads Leg Aluminum Leg Utility Large Storage Unit Device Improved Transmission Jammer Storage Large Storage Unit Processor Improved Targeting Computer Hackware Hacking Suite Protection Improved Medium Armor Plating Weapon Railgun Energy Gun Improved EM Shotgun Energy Cannon HERF Cannon Ballistic Gun Railgun Ballistic Cannon Flak Cannon Launcher Rocket Launcher Special Weapon Welding Torch Slashing Weapon Greatsword Build | -11 -10 -10 -9 -9 -9 -8 -8 -7 -6 -5 -5 -5 -5 -4 -4 -4 ------- Run | Scr Mat Min Mat Min Exi Min Mat Fac Fac Fac Upp Upp Zhi Pro Fac Ext Slots Evolved 12 | . . . 2 . . . 2 2 2 2 . . . . 2 . Power 1 | . . . . . . . . . . 1 . . . . . . Propulsion 3 | . . . 1 . . . 1 . 1 . . . . . . . Utility 8 | . . . 1 . . . 1 2 1 1 . . . . 2 . Weapon . | . . . . . . . . . . . . . . . . . Parts Attached 201 | 6 13 3 47 . 1 . 15 29 20 3 12 3 10 5 7 27 Power 29 | 1 1 1 5 . . . 1 5 4 2 1 . 2 3 . 3 Engine 13 | 1 1 1 1 . . . . 1 2 1 1 . 1 3 . . Core 14 | . . . 4 . . . 1 4 2 1 . . . . . 2 Reactor 2 | . . . . . . . . . . . . . 1 . . 1 Propulsion 62 | 2 6 . 15 . . . 3 12 7 . 1 3 4 1 1 7 Treads 20 | . . . 3 . . . 2 12 2 . . . . . . 1 Leg 42 | 2 6 . 12 . . . 1 . 5 . 1 3 4 1 1 6 Wheel . | . . . . . . . . . . . . . . . . . Hover . | . . . . . . . . . . . . . . . . . Flight . | . . . . . . . . . . . . . . . . . Utility 56 | 1 3 . 13 . 1 . 6 5 7 1 7 . 4 1 3 4 Device 14 | . . . 2 . . . . 1 2 1 2 . 3 . 1 2 Storage 16 | 1 3 . 6 . 1 . 4 . . . . . 1 . . . Processor 6 | . . . . . . . . 2 1 . 1 . . 1 1 . Hackware 2 | . . . . . . . 1 1 . . . . . . . . Protection 18 | . . . 5 . . . 1 1 4 . 4 . . . 1 2 Artifact . | . . . . . . . . . . . . . . . . . Weapon 54 | 2 3 2 14 . . . 5 7 2 . 3 . . . 3 13 Energy Gun 11 | . 1 1 7 . . . 2 . . . . . . . . . Energy Cannon 7 | . . . . . . . . . . . 1 . . . . 6 Ballistic Gun 22 | 2 1 . 5 . . . 1 5 2 . 1 . . . 2 3 Ballistic Cannon 1 | . . . . . . . 1 . . . . . . . . . Launcher 10 | . 1 1 2 . . . 1 . . . 1 . . . . 4 Special Weapon 1 | . . . . . . . . 1 . . . . . . . . Impact Weapon . | . . . . . . . . . . . . . . . . . Slashing Weapon 2 | . . . . . . . . 1 . . . . . . 1 . Piercing Weapon . | . . . . . . . . . . . . . . . . . Special Melee Weapon . | . . . . . . . . . . . . . . . . . Unidentified Prototypes 13 | . . . 2 . . . 2 1 1 . 2 . 4 . . 1 Parts Lost 43 | . . . 5 . . . . 2 3 . 5 . . 1 . 27 Power 8 | . . . 1 . . . . 1 1 . 1 . . 1 . 3 Propulsion 12 | . . . 1 . . . . 1 1 . . . . . . 9 Utility 15 | . . . 2 . . . . . . . 4 . . . . 9 Weapon 8 | . . . 1 . . . . . 1 . . . . . . 6 Highest Loss Streak 19 | . . . 3 . . . . 1 2 . 4 . . 1 . 19 Average Slot Usage (%) 98 | . 99 100 98 100 100 100 98 99 97 98 97 100 99 99 99 93 Engine 4 | . 14 14 . . . . . 2 2 5 7 11 8 4 5 1 Core 5 | . . . 10 11 11 11 9 4 3 4 3 . . . . 2 Treads 12 | . . . 2 33 33 33 34 30 13 . . . . . . . Leg 18 | . 27 28 30 . . . 1 . 18 29 28 29 29 29 26 25 Device 3 | . . . 1 . . . . 3 2 5 6 11 10 11 15 13 Storage 17 | . 27 28 22 22 22 22 17 15 13 11 11 11 11 11 10 9 Processor 6 | . . . . . . . . 10 14 17 14 11 11 11 15 15 Hackware 2 | . . . . . . . 8 7 4 . . . . . . . Protection 7 | . . . 8 11 11 11 9 6 8 11 9 11 11 11 9 7 Energy Gun 4 | . 3 14 11 . . . 8 2 . . . . . . . . Ballistic Gun 11 | . 24 . 9 11 11 11 8 11 12 11 10 11 11 11 9 3 Launcher 2 | . . 13 . 11 11 11 . . . . . . . . . 2 Naked Turns . | . . . . . . . . . . . . . . . . . Heaviest Build 129 | 10 29 29 72 52 52 52 82 86 85 95 108 108 124 124 125 129 Greatest Support 135 | 20 20 20 60 60 60 60 80 96 116 96 96 96 126 131 131 135 Greatest Overweight (x) 24 | . 1 1 3 . . . 1 1 24 . 1 1 1 . . 10 Average Overweight (x) . | . . 1 . . . . . . . . . 1 . . . . Largest Inventory Capacity 24 | 6 12 12 24 16 16 16 18 18 18 18 18 18 18 18 18 18 Average Capacity 16 | 4 11 12 15 16 16 16 16 18 18 18 18 18 18 18 18 17 Most Carried 18 | 6 12 12 17 16 16 16 18 18 18 17 18 18 18 18 18 18 Average Carried 15 | 2 11 11 14 16 15 16 16 17 17 16 17 17 17 17 17 16 Final Capacity 18 | 6 12 12 16 16 16 16 18 18 18 18 18 18 18 18 18 12 Final Carried 18 | 6 12 12 16 16 16 16 18 18 18 17 18 18 18 18 18 8 Class Distribution -------------------- 83% | Mutant 9% | Scavenger-Mutant 4% | Skirmisher Dominant Class ---------------- Mutant | -10/Materials Mutant | -10/Mines Scavenger-Mutant | -9/Materials Mutant | -9/Mines Mutant | -9/Exiles Mutant | -8/Mines Mutant | -8/Materials Mutant | -7/Factory Mutant | -6/Factory Mutant | -5/Factory Mutant | -5/Upper Caves Mutant | -5/Upper Caves Mutant | -5/Zhirov Mutant | -4/Proximity Caves Skirmisher | -4/Factory Skirmisher | -4/Extension Resources | -11 -10 -10 -9 -9 -9 -8 -8 -7 -6 -5 -5 -5 -5 -4 -4 -4 ----------- Run | Scr Mat Min Mat Min Exi Min Mat Fac Fac Fac Upp Upp Zhi Pro Fac Ext Matter Collected 5109 | 225 305 210 791 . 20 33 293 1054 431 . 599 68 . 493 131 456 Remotely . | . . . . . . . . . . . . . . . . . Salvage Created 8091 | . 592 101 1890 . . 15 971 1547 344 . 789 63 . 488 88 1203 Parts 434 | . 33 9 119 . . 7 57 73 18 . 35 . . 19 6 58 Haulers Intercepted 15 | . 2 . 6 . . . 2 4 . . 1 . . . . . Recyclers Shooed 9 | . 2 . 1 . . . . 4 1 . . . . . . 1 Parts Field Recycled . | . . . . . . . . . . . . . . . . . Retrieved Matter . | . . . . . . . . . . . . . . . . . Parts Self-Destructed 45 | . . . . . . . . . . . 24 3 . 18 . . Prevented 6 | . . . . . . . . . . . 6 . . . . . Kills | -11 -10 -10 -9 -9 -9 -8 -8 -7 -6 -5 -5 -5 -5 -4 -4 -4 ------- Run | Scr Mat Min Mat Min Exi Min Mat Fac Fac Fac Upp Upp Zhi Pro Fac Ext Combat Hostiles Destroyed 130 | . 11 4 29 . . 4 18 19 7 . 11 1 . 6 1 19 Guns 98 | . 11 . 27 . . . 18 19 6 . 7 1 . 6 1 2 Cannons 2 | . . . . . . . . . . . . . . . . 2 AOE 23 | . . 4 1 . . 4 . . 1 . 4 . . . . 9 Classes Destroyed 15 | . 5 1 4 . . . 2 2 . . 1 . . . . . Worker 5 | . . . 1 . . . . 4 . . . . . . . . Builder 11 | . . . 4 . . . 1 2 1 . . . . . . 3 Hauler 15 | . 2 . 6 . . . 2 4 . . 1 . . . . . Recycler 10 | . 2 . 3 . . . 1 4 . . . . . . . . Mechanic 1 | . . . 1 . . . . . . . . . . . . . Operator 8 | . 3 . 3 . . . . . 1 . . . . . 1 . Watcher 4 | . . . . . . . . 3 . . . . . . . 1 Swarmer 38 | . 6 2 7 . . 4 6 4 3 . 2 . . . . 4 Grunt 46 | . 5 . 11 . . . 5 5 3 . 5 . . 3 . 9 Brawler 6 | . . . 2 . . . 2 . . . . . . . . 2 Duelist 3 | . . . . . . . 2 1 . . . . . . . . Sentry 24 | . . 2 9 . . . 2 5 1 . 1 . . 1 1 2 Hunter 7 | . . . . . . . 1 1 . . 2 . . 2 . 1 Programmer 4 | . . . . . . . . 3 . . . . . . . 1 Thug 2 | . . . . . . . . . . . 1 1 . . . . Mutant 1 | . . . . . . . . . . . 1 . . . . . Best Kill Streak 15 | . 4 2 6 . . 4 8 6 6 . 5 1 . 3 1 15 Combat Bots Only 12 | . 4 2 5 . . 4 6 4 5 . 5 1 . 3 1 12 Max Kills in Single Turn 6 | . 1 1 2 . . 3 2 2 1 . 4 1 . 1 1 6 Gunslinging . | . . . . . . . . . . . . . . . . . Exploded 5 | . . 1 1 . . 3 . . 1 . 4 . . . . 5 Melee . | . . . . . . . . . . . . . . . . . Uniques/NPCs Destroyed . | . . . . . . . . . . . . . . . . . Combat | -11 -10 -10 -9 -9 -9 -8 -8 -7 -6 -5 -5 -5 -5 -4 -4 -4 -------- Run | Scr Mat Min Mat Min Exi Min Mat Fac Fac Fac Upp Upp Zhi Pro Fac Ext Damage Taken 13152 | . 488 81 1355 . . 39 966 1845 429 . 1761 136 . 949 24 5079 Core 1864 | . 115 . 198 . . 12 117 139 16 . 107 . . 87 . 1073 Absorbed by Shields 820 | . . . . . . . . . . . . . . 598 25 197 Core Remaining (%) 76 | 100 . 54 . . . 47 78 80 98 . . . . 80 . . Volleys Fired 487 | . 58 4 104 . . 3 48 117 26 . 42 3 . 33 6 43 Largest 2 | . 2 1 2 . . 1 2 2 2 . 2 2 . 2 2 2 Hottest 140 | . 65 33 90 . . 33 89 86 70 . 95 70 . 70 70 140 Shots Fired 933 | . 116 4 195 . . 3 95 228 52 . 84 6 . 65 12 73 Gun 865 | . 116 . 188 . . . 92 226 52 . 80 6 . 65 12 28 Cannon 34 | . . . . . . . 3 . . . 3 . . . . 28 Launcher 32 | . . 4 7 . . 3 . . . . 1 . . . . 17 Special 2 | . . . . . . . . 2 . . . . . . . . Kinetic 699 | . 114 . 87 . . . 48 207 52 . 80 6 . 65 12 28 Thermal 26 | . . . . . . . 2 21 . . . . . . . 3 Explosive 18 | . . 4 7 . . 3 . . . . 1 . . . . 3 Electromagnetic 190 | . 2 . 101 . . . 45 . . . 3 . . . . 39 Robot Hit Streak 27 | . 8 1 18 . . 1 15 26 27 . 12 3 . 10 17 15 Robot Miss Streak 5 | . 5 2 4 . . 3 3 3 2 . 4 1 . 5 2 2 Penetration Max 2 | . . . . . . . . 2 1 . 2 . . . . 1 Secondary Targets 10 | . 2 . 4 . . . 3 . 1 . . . . . . . Max Gunslinging Chain 1 | . 1 . 1 . . . 1 . 1 . . . . . . . Shots Hit Robots 660 | . 64 1 139 . . 1 79 176 43 . 50 3 . 44 8 52 Core Hits 362 | . 33 7 87 . . 4 45 62 14 . 40 1 . 19 5 45 Critical Hits 9 | . . . 1 . . . 3 1 1 . 1 . . 1 . 1 Critical Kills 4 | . . . . . . . 3 . . . 1 . . . . . Critical Parts Destroyed 5 | . . . 1 . . . . 1 1 . . . . 1 . 1 Melee Attacks 5 | . . . . . . . . 3 . . . . . . 2 . Impact . | . . . . . . . . . . . . . . . . . Slashing 5 | . . . . . . . . 3 . . . . . . 2 . Piercing . | . . . . . . . . . . . . . . . . . Sneak Attacks . | . . . . . . . . . . . . . . . . . Combat Hostiles . | . . . . . . . . . . . . . . . . . Follow-up Attacks . | . . . . . . . . . . . . . . . . . Damage Inflicted 16755 | . 787 172 2318 . . 313 1164 4159 1165 . 1837 97 . 876 214 3653 Guns 11893 | . 756 . 1877 . . . 1120 4148 1054 . 1239 97 . 876 214 512 Cannons 637 | . . . . . . . 15 . . . 22 . . . . 600 Explosions 4211 | . 31 172 441 . . 313 29 . 111 . 576 . . . . 2538 Melee . | . . . . . . . . . . . . . . . . . Ramming 14 | . . . . . . . . 11 . . . . . . . 3 Kinetic 9583 | . 721 . 635 . . . 397 3838 1054 . 1239 97 . 876 214 512 Thermal 1379 | . 31 . 72 . . . 49 310 111 . . . . . . 806 Explosive 1599 | . . 172 369 . . 313 . . . . 285 . . . . 460 Electromagnetic 4180 | . 35 . 1242 . . . 718 . . . 313 . . . . 1872 Impact . | . . . . . . . . . . . . . . . . . Slashing . | . . . . . . . . . . . . . . . . . Piercing . | . . . . . . . . . . . . . . . . . Highest Corruption 10 | . 3 3 . . . . . 6 . . 3 3 3 3 . 10 Average Corruption 3 | . 2 3 . . . . . 2 . . 2 3 3 3 . 5 Corruption Purged . | . . . . . . . . . . . . . . . . . Effects 101 | . 8 11 . . . . . 26 . . 4 11 4 17 . 20 Message Errors 24 | . 2 2 . . . . . 6 . . 2 5 1 5 . 1 Matter Fused 20 | . 2 2 . . . . . 1 . . 1 3 1 5 . 5 Heat Flow Errors 21 | . 2 5 . . . . . 2 . . 1 2 1 4 . 4 Energy Discharges 10 | . 2 1 . . . . . 4 . . . . . 2 . 1 Parts Rejected 2 | . . . . . . . . 1 . . . . . . . 1 Data Loss (minor) 9 | . . 1 . . . . . 2 . . . 1 1 . . 4 Misfires 1 | . . . . . . . . 1 . . . . . . . . Targeting Errors 6 | . . . . . . . . 4 . . . . . . . 2 Weapon Failures 8 | . . . . . . . . 5 . . . . . 1 . 2 Overload Shots . | . . . . . . . . . . . . . . . . . Overflow Damage 150 | . 4 . 53 . . 4 . . . . . . . . . 89 Projectiles . | . . . . . . . . . . . . . . . . . Explosions 150 | . 4 . 53 . . 4 . . . . . . . . . 89 Melee . | . . . . . . . . . . . . . . . . . Knockbacks 2 | . . . . . . . 2 . . . . . . . . . Impact . | . . . . . . . . . . . . . . . . . Kinetic 1 | . . . . . . . 1 . . . . . . . . . Secondary 1 | . . . . . . . 1 . . . . . . . . . Self-Inflicted Damage 474 | . 22 . 307 . . 35 39 . . . 71 . . . . . Shots 13 | . 1 . 6 . . 2 1 . . . 3 . . . . . Rammed 1 | . . . . . . . . 1 . . . . . . . . Targets Rammed 2 | . . . . . . . . 1 . . . . . . . 1 Kicked 1 | . . . . . . . . . . . . . . . . 1 Crushed . | . . . . . . . . . . . . . . . . . Highest Temperature 341 | . 269 273 322 . . . 189 314 7 . 341 280 221 189 . 297 Average Temperature 68 | . 30 107 67 . . . 71 49 4 . 95 96 116 81 . 72 Received Heat Transfer 2009 | . 132 18 354 . . . 252 294 87 . 369 27 . 39 . 437 Effects 7 | . . 1 . . . . . . . . 2 2 . . . 2 Energy Bleed 3 | . . . . . . . . . . . 1 . . . . 2 Interference 4 | . . 1 . . . . . . . . 1 2 . . . . Siege Activations . | . . . . . . . . . . . . . . . . . Robots Corrupted 7 | . . . 1 . . . . . . . . . . . . 6 Combat Hostiles 7 | . . . 1 . . . . . . . . . . . . 6 Parts Fried 14 | . . . 1 . . . 2 . . . 2 . . . . 9 Impact Corruptions . | . . . . . . . . . . . . . . . . . Robots Melted . | . . . . . . . . . . . . . . . . . Combat Hostiles . | . . . . . . . . . . . . . . . . . Parts Melted 2 | . . . . . . . . . 1 . . . . 1 . . Heat Transferred 1566 | . 100 . 150 . . . 87 555 50 . . . . . . 624 Parts Sabotaged . | . . . . . . . . . . . . . . . . . Parts Stolen . | . . . . . . . . . . . . . . . . . Parts Stripped . | . . . . . . . . . . . . . . . . . Power Chain Reactions 11 | . 1 . 2 . . . 1 . . . . . . . . 7 Missiles Intercepted . | . . . . . . . . . . . . . . . . . Latent Energy Used 523 | . . . . . . . . . . . 89 . . . . 434 LE Corruption 13 | . . . . . . . . . . . 3 . . . . 10 Alert | -11 -10 -10 -9 -9 -9 -8 -8 -7 -6 -5 -5 -5 -5 -4 -4 -4 ------- Run | Scr Mat Min Mat Min Exi Min Mat Fac Fac Fac Upp Upp Zhi Pro Fac Ext Peak Influence 803 | . 185 75 460 165 . 115 441 803 570 259 . . . . 58 631 Initial 393 | . . 34 29 165 . . . 21 393 221 . . . . . 28 Average 227 | . 61 42 273 165 . 109 179 279 418 245 . . . . 16 361 Maximum Alert Level 3 | . . . 2 . . . 2 3 2 1 . . . . . 2 Low Security (%) 48 | 100 100 100 16 100 . 100 66 44 . . . . . . 100 20 Level 1 31 | . . . 68 . . . 24 24 50 100 . . . . . 22 Level 2 18 | . . . 14 . . . 9 25 49 . . . . . . 56 Level 3 1 | . . . . . . . . 5 . . . . . . . . Level 4 . | . . . . . . . . . . . . . . . . . Level 5 . | . . . . . . . . . . . . . . . . . High Security . | . . . . . . . . . . . . . . . . . Max Security . | . . . . . . . . . . . . . . . . . Squads Dispatched 24 | . 3 . 4 . . . 4 6 4 1 . . . . 1 1 Investigation 4 | . . . 2 . . . 1 1 . . . . . . . . Extermination 6 | . . . . . . . . 4 1 . . . . . 1 . Reinforcement 9 | . 3 . 2 . . . . 1 1 1 . . . . . 1 Assault . | . . . . . . . . . . . . . . . . . Garrison 5 | . . . . . . . 3 . 2 . . . . . . . Intercept . | . . . . . . . . . . . . . . . . . Construction Impeded 1 | . . . . . . . . . . . . . . . . 1 Haulers Reinforced 1 | . . . . . . . . 1 . . . . . . . . Stealth | -11 -10 -10 -9 -9 -9 -8 -8 -7 -6 -5 -5 -5 -5 -4 -4 -4 --------- Run | Scr Mat Min Mat Min Exi Min Mat Fac Fac Fac Upp Upp Zhi Pro Fac Ext Distress Signals 12 | . 2 . 4 . . . 3 1 . . . . . . . 2 Communications Jammed 19 | . . . . . . . . . . . 1 . . . . 18 Distress Signals 19 | . . . . . . . . . . . 1 . . . . 18 Times Spotted 216 | . 28 3 49 . . 1 30 34 11 . 11 5 . 7 2 35 Peak Tracking Total 9 | . 4 2 9 . . 1 5 5 2 1 5 1 . 2 3 9 Tactical Retreats 13 | . 1 . 1 . . . 1 7 . . . . . 1 . 2 Traps | -11 -10 -10 -9 -9 -9 -8 -8 -7 -6 -5 -5 -5 -5 -4 -4 -4 ------- Run | Scr Mat Min Mat Min Exi Min Mat Fac Fac Fac Upp Upp Zhi Pro Fac Ext Traps Triggered 11 | . 2 . 3 . . . 1 1 1 . . 1 . . 2 . Indirectly . | . . . . . . . . . . . . . . . . . Trap Hack Attempts . | . . . . . . . . . . . . . . . . . Triggered . | . . . . . . . . . . . . . . . . . Disarmed . | . . . . . . . . . . . . . . . . . Reprogrammed . | . . . . . . . . . . . . . . . . . Reused . | . . . . . . . . . . . . . . . . . Traps Extracted . | . . . . . . . . . . . . . . . . . Installed . | . . . . . . . . . . . . . . . . . Triggered . | . . . . . . . . . . . . . . . . . Machines | -11 -10 -10 -9 -9 -9 -8 -8 -7 -6 -5 -5 -5 -5 -4 -4 -4 ---------- Run | Scr Mat Min Mat Min Exi Min Mat Fac Fac Fac Upp Upp Zhi Pro Fac Ext Machines Disabled 20 | . . 2 5 . . . 1 5 4 . 1 . . . . 2 Max in Single Turn 2 | . . 2 2 . . . 1 2 2 . 1 . . . . 1 Garrison Access 2 | . . . . . . . 1 . 1 . . . . . . . Energy Cycler 1 | . . . . . . . . . . . . . . . . 1 Machines Sabotaged . | . . . . . . . . . . . . . . . . . Garrisons Compromised . | . . . . . . . . . . . . . . . . . Overloaded Fab Kills . | . . . . . . . . . . . . . . . . . Fab Network Shutdowns . | . . . . . . . . . . . . . . . . . Hacking | -11 -10 -10 -9 -9 -9 -8 -8 -7 -6 -5 -5 -5 -5 -4 -4 -4 --------- Run | Scr Mat Min Mat Min Exi Min Mat Fac Fac Fac Upp Upp Zhi Pro Fac Ext Machines Accessed 57 | . 7 . 13 . 2 . 4 11 3 2 . 1 6 . 5 3 Terminals 27 | . 4 . 8 . . . 2 6 1 . . . . . 3 3 Fabricators 3 | . . . . . . . . 3 . . . . . . . . Repair Stations 5 | . 1 . 2 . . . 1 . . 1 . . . . . . Recycling Units 6 | . 2 . 1 . . . . 1 . . . . . . 2 . Scanalyzers 5 | . . . 2 . . . . 1 1 1 . . . . . . Garrison Access 2 | . . . . . . . 1 . 1 . . . . . . . Total Hacks 150 | . 12 . 46 . 5 . 13 27 3 5 . 1 19 . 12 7 Successful 106 | . 9 . 36 . 5 . 8 18 1 3 . 1 19 . 4 2 Failed 44 | . 3 . 10 . . . 5 9 2 2 . . . . 8 5 Catastrophic 2 | . . . . . . . . . 1 . . . . . 1 . Database Lockouts . | . . . . . . . . . . . . . . . . . Manual 55 | . 7 . 15 . 8 . 6 8 1 . . . . . 5 5 Terminals 65 | . 8 . 21 . . . 8 14 1 . . . . . 6 7 Fabricators 5 | . . . . . . . . 5 . . . . . . . . Repair Stations 10 | . 2 . 4 . . . 2 . . 2 . . . . . . Recycling Units 13 | . 2 . 1 . . . . 4 . . . . . . 6 . Scanalyzers 28 | . . . 20 . . . . 4 1 3 . . . . . . Garrison Access 4 | . . . . . . . 3 . 1 . . . . . . . Terminal Hacks 42 | . 1 . 6 . 5 . 3 4 . . . 1 19 . 2 1 Record 12 | . . . . . 4 . . . . . . . 7 . 1 . Part Schematic 5 | . . . . . . . . 1 . . . . 4 . . . Robot Analysis 5 | . . . 1 . . . . . . . . . 4 . . . Prototype ID Bank 6 | . . . 2 . . . . . . . . . 4 . . . Open Door 2 | . . . . . . . . . . . . 1 . . . 1 Repair Station Index 1 | . . . . . . . . 1 . . . . . . . . Alert Level 7 | . 1 . 2 . . . 2 1 . . . . . . 1 . Unreport Threat 2 | . . . 1 . . . 1 . . . . . . . . . Locate Traps 1 | . . . . . . . . 1 . . . . . . . . EX-Prototype ID Bank 1 | . . . . . 1 . . . . . . . . . . . Fabricator Hacks 5 | . . . . . . . . 5 . . . . . . . . Load Schematic 1 | . . . . . . . . 1 . . . . . . . . Build 4 | . . . . . . . . 4 . . . . . . . . Repair Station Hacks 10 | . 2 . 4 . . . 2 . . 2 . . . . . . Scan Component 5 | . 1 . 2 . . . 1 . . 1 . . . . . . Repair 5 | . 1 . 2 . . . 1 . . 1 . . . . . . Recycling Unit Hacks 6 | . 2 . 1 . . . . 1 . . . . . . 2 . Report Inventory 6 | . 2 . 1 . . . . 1 . . . . . . 2 . Scanalyzer 21 | . . . 19 . . . . 1 . 1 . . . . . . Insert Component 11 | . . . 9 . . . . 1 . 1 . . . . . . Analyze 10 | . . . 10 . . . . . . . . . . . . . Garrison Access Hacks 2 | . . . . . . . 1 . 1 . . . . . . . Seal Access 2 | . . . . . . . 1 . 1 . . . . . . . Unauthorized Hacks 20 | . 4 . 6 . . . 2 7 . . . . . . . 1 Terminals 20 | . 4 . 6 . . . 2 7 . . . . . . . 1 Botnet 16 | . 3 . 5 . . . 1 6 . . . . . . . 1 Operators 4 | . 1 . 1 . . . 1 1 . . . . . . . . Fabricators . | . . . . . . . . . . . . . . . . . Repair Stations . | . . . . . . . . . . . . . . . . . Recycling Units . | . . . . . . . . . . . . . . . . . Scanalyzers . | . . . . . . . . . . . . . . . . . Garrison Access . | . . . . . . . . . . . . . . . . . Data Cores Recovered 1 | . . . . . . . . . . . . . . . 1 . Used 1 | . . . . . . . . . . . . . . . 1 . Hacking Detections 39 | . 5 . 11 . . . 4 8 2 2 . . . . 5 2 Full Trace Events 1 | . . . . . . . . 1 . . . . . . . . Feedback Events . | . . . . . . . . . . . . . . . . . Feedback Blocked . | . . . . . . . . . . . . . . . . . Robot Schematics Acquired . | . . . . . . . . . . . . . . . . . Robots Built 1 | . . . . . . . . 1 . . . . . . . . Matter 153 | . . . . . . . . 153 . . . . . . . . Time 40 | . . . . . . . . 40 . . . . . . . . Total Robot Build Rating 1 | . . . . . . . . 1 . . . . . . . . Part Schematics Acquired 13 | . . . 8 . . . . 1 . . . . 4 . . . Parts Built 6 | . . . . . . . . 6 . . . . . . . . Matter 592 | . . . . . . . . 592 . . . . . . . . Time 296 | . . . . . . . . 296 . . . . . . . . Total Part Build Rating 32 | . . . . . . . . 32 . . . . . . . . Parts Repaired 5 | . 1 . 2 . . . 1 . . 1 . . . . . . Time 128 | . 26 . 51 . . . 26 . . 25 . . . . . . Parts Recycled . | . . . . . . . . . . . . . . . . . Recycled Matter . | . . . . . . . . . . . . . . . . . Retrieved Matter . | . . . . . . . . . . . . . . . . . Retrieved Components . | . . . . . . . . . . . . . . . . . Parts Scanalyzed 11 | . . . 9 . . . . 1 . 1 . . . . . . Part Schematics Acquired 8 | . . . 8 . . . . . . . . . . . . . Parts Damaged . | . . . . . . . . . . . . . . . . . Bothacking | -11 -10 -10 -9 -9 -9 -8 -8 -7 -6 -5 -5 -5 -5 -4 -4 -4 ------------ Run | Scr Mat Min Mat Min Exi Min Mat Fac Fac Fac Upp Upp Zhi Pro Fac Ext Used RIF Installer . | . . . . . . . . . . . . . . . . . Robots Hacked . | . . . . . . . . . . . . . . . . . Non-combat . | . . . . . . . . . . . . . . . . . Combat . | . . . . . . . . . . . . . . . . . Robot Hacks Applied . | . . . . . . . . . . . . . . . . . Relay Couplers Released . | . . . . . . . . . . . . . . . . . Robots Rewired 3 | . . . . . . . . . . . 3 . . . . . Allies Hacked . | . . . . . . . . . . . . . . . . . Hacks Repelled . | . . . . . . . . . . . . . . . . . Allies | -11 -10 -10 -9 -9 -9 -8 -8 -7 -6 -5 -5 -5 -5 -4 -4 -4 -------- Run | Scr Mat Min Mat Min Exi Min Mat Fac Fac Fac Upp Upp Zhi Pro Fac Ext Total Allies 9 | . . . . 1 . . . 1 3 . 3 . . . . 1 Largest Group 3 | . . . . 1 1 . . 1 3 1 3 3 3 3 . 1 Highest-Rated Group 93 | . . . . 31 31 . . 12 93 23 93 93 93 93 . 46 Highest-Rated Ally 46 | . . . . 31 31 . . 12 31 23 31 31 31 31 . 46 Total Orders 2 | . . . . . . . . 2 . . . . . . . . STAY 1 | . . . . . . . . 1 . . . . . . . . COLLECT 1 | . . . . . . . . 1 . . . . . . . . Ally Attacks 84 | . . . . . . . . . 40 . . 15 . 12 . 17 Total Damage 1449 | . . . . . . . . . 752 . . 272 . 165 . 260 Kills 10 | . . . . . . . . . 5 . . 3 . . . 2 Allies Corrupted . | . . . . . . . . . . . . . . . . . Allies Melted . | . . . . . . . . . . . . . . . . . Intel | -11 -10 -10 -9 -9 -9 -8 -8 -7 -6 -5 -5 -5 -5 -4 -4 -4 ------- Run | Scr Mat Min Mat Min Exi Min Mat Fac Fac Fac Upp Upp Zhi Pro Fac Ext Robot Analysis Total 5 | . . . 1 . . . . . . . . . 4 . . . Derelict Logs Recovered 6 | . . 1 . 1 . . . . . . 1 2 . 1 . . Drone Launches . | . . . . . . . . . . . . . . . . . Drone Recoveries . | . . . . . . . . . . . . . . . . . Exploration | -11 -10 -10 -9 -9 -9 -8 -8 -7 -6 -5 -5 -5 -5 -4 -4 -4 ------------- Run | Scr Mat Min Mat Min Exi Min Mat Fac Fac Fac Upp Upp Zhi Pro Fac Ext Turns Passed 15804 | 76 1493 751 2964 301 1170 416 826 2761 963 152 902 744 260 863 332 830 Spaces Moved 8564 | 54 795 472 1616 171 687 241 302 1230 528 96 533 459 167 511 236 466 Core 7 | 5 . . . . . . . . 1 . . . . . . 1 Treads 2968 | . . . 105 171 687 241 302 1230 232 . . . . . . . Legs 5589 | 49 795 472 1511 . . . . . 295 96 533 459 167 511 236 465 Wheels . | . . . . . . . . . . . . . . . . . Hover . | . . . . . . . . . . . . . . . . . Flight . | . . . . . . . . . . . . . . . . . Fastest Speed 50 | 50 120 150 120 170 170 170 167 162 128 128 128 154 120 120 120 120 Average Speed 149 | 113 149 150 145 170 170 170 168 166 144 128 137 155 139 120 120 122 Slowest Speed 1250 | 120 150 150 210 170 170 170 187 187 1250 128 158 156 154 120 120 550 Overloaded Moves . | . . . . . . . . . . . . . . . . . Propulsion Burnouts . | . . . . . . . . . . . . . . . . . Robots Hopped . | . . . . . . . . . . . . . . . . . Cave-ins Triggered . | . . . . . . . . . . . . . . . . . Teleports 1 | . . . . . . . . . . . . . . . . 1 Exploration Rate (%) 49 | 5 96 83 95 31 92 49 29 24 15 1 78 72 62 55 7 49 Regions Visited 16 Branch Regions 9 Pre-discovered Areas 4 | . . . . . 1 . . . . . . . 3 . . . Known Exits Taken 9 | . . 1 . . . . . 1 1 1 1 1 1 1 1 . Unknown Exits Taken 7 | 1 1 . 1 1 1 1 1 . . . . . . . . . Scrap Searched 10 | . . 1 . . . 1 . . . . 1 2 . 5 . . Spaces Dug 17 | . . 11 . . . . . 4 . . . . . . 2 . Terrain Destroyed 395 | . . 45 87 . . 25 3 52 15 . 45 5 . 33 4 81 Melee 5 | . . . . . . . . 3 . . . . . . 2 . Projectile 124 | . . . . . . . . 28 15 . 33 5 . 33 2 8 AOE 266 | . . 45 87 . . 25 3 21 . . 12 . . . . 73 Terrain Rammed . | . . . . . . . . . . . . . . . . . Walls Destroyed . | . . . . . . . . . . . . . . . . . Machines Disabled . | . . . . . . . . . . . . . . . . . Doors Sealed 2 | . . . . . . . . 2 . . . . . . . . Actions | -11 -10 -10 -9 -9 -9 -8 -8 -7 -6 -5 -5 -5 -5 -4 -4 -4 --------- Run | Scr Mat Min Mat Min Exi Min Mat Fac Fac Fac Upp Upp Zhi Pro Fac Ext Total 10770 | 65 996 511 2046 182 690 245 534 1787 679 124 620 488 194 694 269 646 Wait 1190 | . 91 29 209 12 . 2 130 355 71 25 7 11 6 142 2 98 Move 8548 | 53 794 471 1615 170 686 240 301 1229 527 95 532 458 166 510 235 466 Hop . | . . . . . . . . . . . . . . . . . Pick Up 120 | 6 19 1 26 . 1 . 18 18 12 1 8 4 2 . 2 2 Fast Attach 82 | 6 4 2 18 . . . 6 12 12 1 3 1 6 2 4 5 Attach 52 | . . . 8 . . . 4 9 5 2 5 1 1 1 3 13 Detach 20 | . . . 4 . . . 5 4 2 . 1 . . . 1 3 Swap 70 | . 9 1 21 . 1 . 5 8 4 . 4 1 4 2 . 10 Drop 165 | . 21 3 41 . 2 . 17 31 20 . 4 6 9 2 4 5 Fire 487 | . 58 4 104 . . 3 48 117 26 . 42 3 . 33 6 43 Melee 5 | . . . . . . . . 3 . . . . . . 2 . Ram . | . . . . . . . . . . . . . . . . . Kick 1 | . . . . . . . . . . . . . . . . 1 Crush 1 | . . . . . . . . 1 . . . . . . . . Escape Stasis 10 | . . . . . . . . . . . . . . . 10 . Rewire 19 | . . . . . . . . . . . 14 3 . 2 . . Trap . | . . . . . . . . . . . . . . . . . Miscellaneous . | . . . . . . . . . . . . . . . . . Route ------- -11/Scrapyard -10/Materials (discovered 4 exits: *Mat x3 / [*Min]) -10/Mines (discovered 2 exits: *Mat x2) -9/Materials (discovered 3 exits: *Mat x2 / [*Min]) -9/Mines -9/Exiles (discovered 2 exits: [*Min x2]) -8/Mines -8/Materials (discovered 2 exits: *Fac / Sto) -7/Factory (discovered 2 exits: *Fac x2) -6/Factory -5/Factory -5/Upper Caves -5/Upper Caves -5/Zhirov -4/Proximity Caves -4/Factory (discovered 2 exits: Res / *Ext) -4/Extension (discovered 1 exit: *Res) History --------- Turn | Location | Event 2 | -11/Scrapyard | Discovered new exit (range 16) 77 | -11/Scrapyard | Entered Materials 309 | -10/Materials | Build established: Mutant 333 | -10/Materials | Repaired Aluminum Leg 570 | -10/Materials | Discovered new exit (range 15) 866 | -10/Materials | Discovered new exit (range 15) 1241 | -10/Materials | Discovered new exit (range 15) 1429 | -10/Materials | Discovered new exit (range 12) 1570 | -10/Materials | Entered Mines 1595 | -10/Mines | Met a Derelict bent on vengeance 1654 | -10/Mines | A weapon hastily lodged in a ceiling crevice suddenly fell to the ground 1712 | -10/Mines | Discovered new exit (range 13) 1944 | -10/Mines | Identified exit to Materials 2039 | -10/Mines | Received a Rocket Launcher from a helpful Derelict 2321 | -10/Mines | Entered Materials 2321 | -9/Materials | Evolved 2 slots: Propulsion x1, Utility x1 2930 | -9/Materials | Repaired Aluminum Leg 3233 | -9/Materials | Discovered new exit (range 12) 3606 | -9/Materials | Discovered new exit (range 11) 3957 | -9/Materials | Lost 3 parts (1n1u1w) 4302 | -9/Materials | Build established: Scavenger-Mutant 4550 | -9/Materials | Discovered new exit (range 14) 5052 | -9/Materials | Repaired Imp. EM Shotgun 5285 | -9/Materials | Entered Mines 5329 | -9/Mines | Assembled infested the area 5333 | -9/Mines | Found a hidden stash of uninstalled traps 5334 | -9/Mines | Assisted by a Guerilla fighting off Assembled 5396 | -9/Mines | Build established: Mutant 5467 | -9/Mines | Received a Mining Laser from a helpful Derelict 5578 | -9/Mines | Deemed a non-threat by the Exiles lab entrance 5580 | -9/Mines | Discovered new exit (range 5) 5586 | -9/Mines | Entered Exiles 5586 | -9/Exiles | Accompanied by 1 ally 5609 | -9/Exiles | Discovered new exit (range 15) 5632 | -9/Exiles | Met 8R-AWN 5656 | -9/Exiles | Met EX-HEX 5766 | -9/Exiles | Met EX-DEC 5802 | -9/Exiles | Met EX-BIN 5855 | -9/Exiles | Learned location of Zion (-6) 5949 | -9/Exiles | Visited The Gauntlet 6513 | -9/Exiles | Aligned with FarCom system 6514 | -9/Exiles | Given EX-Vault access code 6554 | -9/Exiles | Opened EX-Vault 6566 | -9/Exiles | Found Latent Energy Streamer 6603 | -9/Exiles | Warned to stay clear of 0b10 Research branches 6742 | -9/Exiles | Discovered new exit (range 10) 6756 | -9/Exiles | Left Exiles lab with Latent Energy Streamer 6756 | -9/Exiles | Entered Mines 6757 | -8/Mines | Core integrity fell below 50% 7152 | -8/Mines | Discovered new exit (range 3) 7172 | -8/Mines | Entered Materials 7172 | -8/Materials | Evolved 2 slots: Propulsion x1, Utility x1 7173 | -8/Materials | Identified exit to Storage 7287 | -8/Materials | Garrison activated, responded to threat 7884 | -8/Materials | Discovered new exit (range 16) 7955 | -8/Materials | Repaired Hcp. Storage Unit 7998 | -8/Materials | Entered Factory 7998 | -7/Factory | Evolved 2 slots: Utility x2 8538 | -7/Factory | Fabricated Terrain Scan Processor (x2) 8980 | -7/Factory | Fabricated Railgun (x2) 9368 | -7/Factory | Fabricated A-02 Transporter (x1) 9430 | -7/Factory | Discovered new exit (range 16) 9556 | -7/Factory | Identified exit to Factory 10598 | -7/Factory | Fabricated Railgun (x2) 10729 | -7/Factory | Discovered exit to Factory (range 6) 10759 | -7/Factory | Entered another Factory area 10759 | -6/Factory | Evolved 2 slots: Propulsion x1, Utility x1 10969 | -6/Factory | Allied Derelicts emerged from ambush trap array 10986 | -6/Factory | Garrison activated, responded to threat 11631 | -6/Factory | Discovered new exit (range 15) 11658 | -6/Factory | Identified exit to Factory 11722 | -6/Factory | Entered another Factory area 11722 | -5/Factory | Accompanied by 1 ally 11722 | -5/Factory | Evolved 2 slots: Power x1, Utility x1 11771 | -5/Factory | Repaired Lgt. Fission Core 11778 | -5/Factory | Discovered new exit (range 8) 11787 | -5/Factory | Identified exit to Upper Caves 11874 | -5/Factory | Entered Upper Caves 12301 | -5/Upper Caves | Attracted the attention of an 0b10 checkpoint 12328 | -5/Upper Caves | Learned Factory non-interactive machine intel 12469 | -5/Upper Caves | Lost 4 parts (1p3u) 12532 | -5/Upper Caves | Found Imp. Powered Armor 12680 | -5/Upper Caves | Discovered new exit (range 16) 12696 | -5/Upper Caves | Attacked by a delusional Derelict stockpiling Unaware 12771 | -5/Upper Caves | Identified exit to Upper Caves 12776 | -5/Upper Caves | Entered another Upper Caves area 12776 | -5/Upper Caves | Accompanied by 3 allies 12859 | -5/Upper Caves | Learned Factory emergency access door positions 13128 | -5/Upper Caves | Ambushed by wild Derelicts 13244 | -5/Upper Caves | Learned 8 Factory zone layouts 13508 | -5/Upper Caves | Discovered new exit (range 7) 13519 | -5/Upper Caves | Identified exit to Zhirov 13520 | -5/Upper Caves | Entered Zhirov 13520 | -5/Zhirov | Accompanied by 3 allies 13520 | -5/Zhirov | Discovered new exit (range 3) 13548 | -5/Zhirov | Met Zhirov 13576 | -5/Zhirov | Learned location of Command (-1) 13576 | -5/Zhirov | Learned location of Testing (-3) 13576 | -5/Zhirov | Learned location of Quarantine (-2) 13608 | -5/Zhirov | Zhirov requested help retrieving the SGEMP Prototype 13636 | -5/Zhirov | Found Alien Artifact 13636 | -5/Zhirov | Identified Integrated Dissipator 13636 | -5/Zhirov | Installed Integrated Dissipator, increased core heat dissipation (+20) 13728 | -5/Zhirov | Found Alien Artifact 13776 | -5/Zhirov | Identified exit to Proximity Caves 13780 | -5/Zhirov | Entered Proximity Caves 13780 | -4/Proximity Caves | Accompanied by 3 allies 13969 | -4/Proximity Caves | Spotted B-86 Titan 14154 | -4/Proximity Caves | Received a Behemoth hack from an annoying Tinkerer 14515 | -4/Proximity Caves | Attracted the attention of an 0b10 checkpoint 14577 | -4/Proximity Caves | Discovered new exit (range 13) 14642 | -4/Proximity Caves | Identified exit to Factory 14643 | -4/Proximity Caves | Entered Factory 14643 | -4/Factory | Evolved 2 slots: Utility x2 14644 | -4/Factory | Identified exit to Research 14646 | -4/Factory | Loaded intel: 201 non-interactive machine locations 14953 | -4/Factory | Build established: Skirmisher 14957 | -4/Factory | Discovered new exit (range 16) 14974 | -4/Factory | Identified exit to Extension 14975 | -4/Factory | Entered Extension 14986 | -4/Extension | Disrupted transfer network 15042 | -4/Extension | Rescued a captive Derelict 15118 | -4/Extension | Energy Cycler disabled 15121 | -4/Extension | Rescued a captive Derelict 15195 | -4/Extension | Destroyed 12 combat bots 15509 | -4/Extension | Spotted B-86 Titan 15524 | -4/Extension | Spotted B-86 Titan 15549 | -4/Extension | Identified Transdimensional Reconstructor 15549 | -4/Extension | Warped through subspace 15578 | -4/Extension | Lost 6 parts (2n3u1w) 15721 | -4/Extension | System corruption reached 10% 15773 | -4/Extension | Discovered exit to Research (range 15) 15785 | -4/Extension | Core integrity fell below 50% 15796 | -4/Extension | Core integrity fell below 20% 15805 | -4/Extension | Destroyed by B-86 Titan with Hardcell Cannon Last Messages --------------- 15790_ Knocked back. 15790_ Slug penetrates B-86 Titan. 15791_ Slug penetrates Wall. 15794_ Penetrated by Slug. 15794_ Slug penetrates Wall. 15794_ Knocked back. 15794_ Slug penetrates Wall. 15795_ System corrupted: Heat flow error (+231). 15795_ Knocked back. 15796_ B-86 Titan activates siege mode. 15797_ Penetrated by Slug. 15797_ B-86 Titan IFF system glitched. 15798_ Connecting with Door Terminal... 15800_ Penetrated by Slug. 15800_ Adv. Myomer Leg destroyed. 15801_ Penetrated by Slug. 15801_ Slug penetrates Wall. 15804_ Slug penetrates Reinforced Barrier. 15805_ Penetrated by Slug. 15805_ Adv. Medium Treads destroyed. Map ----- +----------------------------------------------------+ | ############# #### #=# ######## ##?###??????????? | | ?########### ######%# ######## ##+???#?????????? | | ############ =*####?#?### # ? ??????????? | | ############ ###### ##?#####?# #? ????????????? | | ###?################# ##########"+ ? ?????????? | | ######?##############!########## # ??#????????? | | ?####################=###?######"#? ???#????????? | | #####?###############%########## # ???????????? | | #####################!######?### #?#?##?#????????? | | ###?############### #[########## #??##?#?????????? | | #?#########?######""#=#[= ## ##? ######??????????? | | ################### =R%%$ " "???##??????????? | | ?######?########### [R% R ####??????????? | | ?#?######?#####?### !%=#?#???????????? | | ?################## =w#?????????????? | | #"##"####"########; ##????????????? | | % ???????????? | | h ??????????? | | ??????????? | | ??????????? | | ????????????? | | ##############""";; BB BB ##????????????? | | ???????###?## # ## BB BB #?????????????? | | ????????#??# # # h #?????????????? | | ?????????#?####?##; #?????????????? | | ???????#???#?????#; @ #?????????????? | | ?????????????#??# ;##;## # ######??????????????? | | ????????????????##?# # ### < #???????????????????? | | ??????????????#?#??##?#????###???????????????????? | | | | | | | | | | | | | | | | | | | | | | | | | | | | | | | | | | | | | | | | | | | +----------------------------------------------------+ Best States ------------- Heat Dissipation 63 Energy Generation 51 Energy Capacity 550 Matter Stores 300 Matter Capacity 300 Sight Range 16 Terrain Scan Range 20 Terrain Scan Density 110 Jamming Range 12 Power Amplification 30 Armor Coverage 825 Resistance: KI 30 Weapon Cycling 15 Evasion (%) 40 Targeting Accuracy 12 Recoil Reduction 5 Matter Filtering 50 Offensive Hacking 20 Item Schematics ----------------- Imp. Targeting Computer | -9/Materials | Scanalyzed Imp. Heat Sink | -9/Materials | Scanalyzed Rocket Launcher | -9/Materials | Scanalyzed Enh. Flamer | -9/Materials | Scanalyzed Imp. Signal Interpreter | -9/Materials | Scanalyzed Hacking Suite | -9/Materials | Scanalyzed Terrain Scan Processor | -9/Materials | Scanalyzed Imp. EM Shotgun | -9/Materials | Scanalyzed Adv. Heat Sink | -7/Factory | Hacked Assault Drone Bay | -5/Zhirov | Free Exp. Heat Sink | -5/Zhirov | Free Exp. Optical Array | -5/Zhirov | Free Imp. Arc Thrower | -5/Zhirov | Free Robot Schematics ------------------ None Fabricated ------------ Terrain Scan Processor | x2 | -7/Factory Railgun | x2 | -7/Factory | Preloaded A-02 Transporter | x1 | -7/Factory | Preloaded Railgun | x2 | -7/Factory | Preloaded Alien Tech Used ----------------- Integrated Dissipator Transdimensional Reconstructor Achievements -------------- A New Friend Challenges ------------ None Game ------ Seed CorruptionScatterPit Manual? 0 Play Time 02:35:58 Cumulative 29.6 hours Start 2020.11.13 @ 23:07:30 End 2020.11.14 @ 02:35:40 Sessions 1 Manual Loads 0 Difficulty Rogue Special Mode Halloween2020/ForbiddenLore Game No. 25 Rogue 25 Adventurer 0 Explorer 0 Win Type - Total 0 Types 0/0/0/0/0/0/0/0/0 Lore% 32 Gallery% 35 Achievement% 33 Wizard Run 0 Options --------- ASCII 0 Keyboard 1 Movement Numpad Keybinds 0 Fullscreen 2 Font 18/SmallcapsGlow Map View 76x50 Tactical HUD 1 Map Filters NONE Filters NONE Steam 1 RUN: e7c6f1ef-742a-4942-bc9c-cdfd41bd1877